fUST/lending_fUST_20250902
["ID","MTS","AMOUNT","RATE_DAILY","PERIOD"]
[382836999,1756752660522,-480.0,0.00014794,2]
[382837001,1756752660533,-492.62,0.00014794,2]
[382837003,1756752660542,-480.0,0.00014794,2]
[382837005,1756752660552,-480.0,0.00014794,2]
[382837007,1756752660561,-592.4,0.00014794,2]
[382837009,1756752660570,-480.0,0.00014794,2]
[382837011,1756752660579,-480.0,0.00014794,2]
[382837013,1756752660588,-503.19,0.00014794,2]
[382837015,1756752660599,-480.0,0.00014794,2]
[382837017,1756752660613,-548.99,0.00014794,2]
[382837019,1756752660622,-480.0,0.00014794,2]
[382837021,1756752660631,-480.0,0.00014794,2]
[382837023,1756752660640,-480.0,0.00014794,2]
[382837025,1756752660650,-480.0,0.00014794,2]
[382837027,1756752660660,-700.63,0.00014794,2]
[382837029,1756752660671,-480.0,0.00014794,2]
[382837031,1756752660680,-640.83,0.00014794,2]
[382837033,1756752660689,-579.17,0.00014794,2]
[382837035,1756752660699,-508.51,0.00014794,2]
[382837037,1756752660708,-480.0,0.00014794,2]
[382837039,1756752660717,-480.0,0.00014794,2]
[382837041,1756752660726,-597.73,0.00014794,2]
[382837043,1756752660736,-480.0,0.00014794,2]
[382837045,1756752660746,-668.88,0.00014794,2]
[382837047,1756752660756,-688.87,0.00014794,2]
[382837049,1756752660771,-480.0,0.00014794,2]
[382837051,1756752660781,-480.0,0.00014794,2]
[382837053,1756752660790,-548.87,0.00014794,2]
[382837055,1756752660799,-480.0,0.00014794,2]
[382837057,1756752660808,-480.0,0.00014794,2]
[382837059,1756752660816,-480.0,0.00014794,2]
[382837061,1756752660825,-667.0,0.00014794,2]
[382837063,1756752660835,-480.0,0.00014794,2]
[382837065,1756752660844,-480.0,0.00014794,2]
[382837067,1756752660853,-480.0,0.00014794,2]
[382837069,1756752660862,-480.0,0.00014794,2]
[382837072,1756752660872,-615.05,0.00014794,2]
[382837074,1756752660880,-753.09,0.00014794,2]
[382837076,1756752660889,-480.0,0.00014794,2]
[382837078,1756752660898,-2266.56,0.00014794,2]
[382837079,1756752660905,-480.0,0.00014794,2]
[382837081,1756752660912,-920.79,0.00014794,2]
[382837083,1756752660920,-694.03,0.00014794,2]
[382837086,1756752660929,-564.46,0.00014794,2]
[382837088,1756752660936,-3115.4,0.00014794,2]
[382837090,1756752660944,-480.0,0.00014794,2]
[382837092,1756752660952,-480.0,0.00014794,2]
[382837094,1756752660959,-480.0,0.00014794,2]
[382837096,1756752660967,-1162.68,0.00014794,2]
[382837098,1756752660977,-571.48,0.00014794,2]
[382837100,1756752660984,-480.0,0.00014794,2]
[382837102,1756752660992,-480.0,0.00014794,2]
[382837104,1756752661001,-1242.4,0.00014794,2]
[382837106,1756752661009,-480.0,0.00014794,2]
[382837108,1756752661016,-480.0,0.00014794,2]
[382837110,1756752661025,-480.0,0.00014794,2]
[382837112,1756752661034,-616.55,0.00014794,2]
[382837114,1756752661044,-599.05,0.00014794,2]
[382837116,1756752661053,-480.0,0.00014794,2]
[382837118,1756752661062,-480.0,0.00014794,2]
[382837120,1756752661072,-738.71,0.00014794,2]
[382837122,1756752661082,-1484.02,0.00014794,2]
[382837124,1756752661091,-351.5,0.00014794,2]
[382837126,1756752661100,-594.72,0.00014794,2]
[382837128,1756752661109,-480.0,0.00014794,2]
[382837130,1756752661119,-497.25,0.00014794,2]
[382837132,1756752661128,-5123.42,0.00014794,2]
[382837134,1756752661138,-1779.12,0.00014794,2]
[382837136,1756752661148,-480.0,0.00014794,2]
[382837138,1756752661158,-480.0,0.00014794,2]
[382837140,1756752661168,-480.0,0.00014794,2]
[382837142,1756752661178,-682.83,0.00014794,2]
[382837144,1756752661187,-626.08,0.00014794,2]
[382837146,1756752661197,-480.0,0.00014794,2]
[382837148,1756752661207,-154.76,0.00014794,2]
[382837150,1756752661216,-313.9,0.00014794,2]
[382837151,1756752661225,-626.41,0.00014794,2]
[382837152,1756752661235,-1236.9,0.00014794,2]
[382837153,1756752661245,-361.93582549,0.00014794,2]
[382837154,1756752661254,-685.05,0.00014794,2]
[382837155,1756752661264,-480.0,0.00014794,2]
[382837156,1756752661273,-480.0,0.00014794,2]
[382837157,1756752661282,-556.94,0.00014794,2]
[382837158,1756752661291,-480.0,0.00014794,2]
[382837159,1756752661300,-480.0,0.00014794,2]
[382837160,1756752661309,-631.68,0.00014794,2]
[382837161,1756752661319,-480.0,0.00014794,2]
[382837162,1756752661328,-480.0,0.00014794,2]
[382837163,1756752661337,-750.73,0.00014794,2]
[382837164,1756752661346,-480.0,0.00014794,2]
[382837165,1756752661355,-819.12,0.00014794,2]
[382837166,1756752661365,-3211.07,0.00014794,2]
[382837167,1756752661374,-480.0,0.00014794,2]
[382837168,1756752661383,-311.44214501,0.00014794,2]
[382837169,1756752661393,-491.99,0.00014794,2]
[382837170,1756752661402,-1086.27,0.00014794,2]
[382837171,1756752661411,-230.25,0.00014794,2]
[382837172,1756752661421,-480.0,0.00014794,2]
[382837173,1756752661430,-480.0,0.00014794,2]
[382837174,1756752661439,-2100.38,0.00014794,2]
[382837175,1756752661448,-1577.9,0.00014794,2]
[382837176,1756752661458,-480.0,0.00014794,2]
[382837177,1756752661467,-1542.28,0.00014794,2]
[382837178,1756752661476,-576.44,0.00014794,2]
[382837179,1756752661485,-480.0,0.00014794,2]
[382837180,1756752661494,-480.0,0.00014794,2]
[382837181,1756752661503,-392.06,0.00014794,2]
[382837182,1756752661513,-480.0,0.00014794,2]
[382837183,1756752661522,-633.39,0.00014794,2]
[382837184,1756752661531,-525.33,0.00014794,2]
[382837185,1756752661540,-480.0,0.00014794,2]
[382837186,1756752661549,-490.33,0.00014794,2]
[382837187,1756752661559,-773.53,0.00014794,2]
[382837188,1756752661567,-1971.19,0.00014794,2]
[382837189,1756752661577,-480.0,0.00014794,2]
[382837191,1756752661586,-613.24,0.00014794,2]
[382837193,1756752661596,-562.49,0.00014794,2]
[382837195,1756752661605,-480.0,0.00014794,2]
[382837197,1756752661615,-942.08,0.00014794,2]
[382837199,1756752661625,-609.01,0.00014794,2]
[382837201,1756752661635,-151.0,0.000148,2]
[382837203,1756752661645,-1000.0,0.00014821,2]
[382837204,1756752661657,-1000.0,0.00014821,2]
[382837206,1756752661667,-1000.0,0.00014821,2]
[382837208,1756752661677,-1000.0,0.00014821,2]
[382837210,1756752661686,-1000.0,0.00014821,2]
[382837227,1756752661839,-151.0,0.000149,2]
[382837229,1756752661848,-173.8167265,0.000149,2]
[382837231,1756752661858,-160.0,0.00015,2]
[382837233,1756752661869,-151.0,0.00015068,2]
[382837235,1756752661878,-151.0,0.00015068,2]
[382837237,1756752661887,-151.0,0.00015068,2]
[382837239,1756752661896,-151.0,0.00015068,2]
[382837241,1756752661905,-151.0,0.00015068,2]
[382837243,1756752661915,-690.0,0.00015068,2]
[382837245,1756752661924,-151.0,0.00015068,2]
[382837247,1756752661933,-151.0,0.00015068,2]
[382837249,1756752661943,-500.0,0.00015068,2]
[382837251,1756752661952,-480.0,0.00015068,2]
[382837253,1756752661962,-509.36,0.00015068,2]
[382837255,1756752661971,-1417.58,0.00015068,2]
[382837257,1756752661980,-480.0,0.00015068,2]
[382837259,1756752661990,-480.0,0.00015068,2]
[382837261,1756752662000,-480.0,0.00015068,2]
[382837263,1756752662010,-480.0,0.00015068,2]
[382837265,1756752662019,-497.67174695,0.00015068,2]
[382837267,1756752662028,-480.0,0.00015068,2]
[382837269,1756752662036,-556.68,0.00015068,2]
[382837271,1756752662045,-480.0,0.00015068,2]
[382837273,1756752662055,-480.0,0.00015068,2]
[382837275,1756752662065,-624.23,0.00015068,2]
[382837277,1756752662074,-480.0,0.00015068,2]
[382837279,1756752662083,-505.72,0.00015068,2]
[382837281,1756752662093,-480.34,0.00015068,2]
[382837283,1756752662102,-480.0,0.00015068,2]
[382837285,1756752662112,-480.0,0.00015068,2]
[382837287,1756752662122,-483.6,0.00015068,2]
[382837289,1756752662131,-562.48,0.00015068,2]
[382837291,1756752662141,-613.13,0.00015068,2]
[382837293,1756752662151,-480.0,0.00015068,2]
[382837295,1756752662160,-492.62,0.00015068,2]
[382837297,1756752662170,-480.0,0.00015068,2]
[382837299,1756752662180,-480.0,0.00015068,2]
[382837301,1756752662189,-592.4,0.00015068,2]
[382837303,1756752662199,-480.0,0.00015068,2]
[382837305,1756752662208,-207.72741906,0.00015068,2]
[382837307,1756752662218,-503.19,0.00015068,2]
[382837309,1756752662228,-480.0,0.00015068,2]
[382837311,1756752662237,-150.0,0.00015068,2]
[382837313,1756752662247,-548.99,0.00015068,2]
[382837315,1756752662256,-480.0,0.00015068,2]
[382837317,1756752662265,-480.0,0.00015068,2]
[382837319,1756752662275,-480.0,0.00015068,2]
[382837321,1756752662284,-480.0,0.00015068,2]
[382837323,1756752662294,-700.63,0.00015068,2]
[382837325,1756752662303,-480.0,0.00015068,2]
[382837327,1756752662313,-640.83,0.00015068,2]
[382837329,1756752662322,-579.17,0.00015068,2]
[382837331,1756752662331,-508.51,0.00015068,2]
[382837333,1756752662341,-480.0,0.00015068,2]
[382837334,1756752662350,-480.0,0.00015068,2]
[382837336,1756752662360,-597.73,0.00015068,2]
[382837338,1756752662369,-480.0,0.00015068,2]
[382837341,1756752662381,-668.88,0.00015068,2]
[382837343,1756752662391,-688.87,0.00015068,2]
[382837345,1756752662400,-480.0,0.00015068,2]
[382837347,1756752662410,-480.0,0.00015068,2]
[382837349,1756752662419,-548.87,0.00015068,2]
[382837351,1756752662429,-480.0,0.00015068,2]
[382837353,1756752662438,-480.0,0.00015068,2]
[382837355,1756752662447,-480.0,0.00015068,2]
[382837357,1756752662456,-667.0,0.00015068,2]
[382837358,1756752662466,-480.0,0.00015068,2]
[382837361,1756752662475,-480.0,0.00015068,2]
[382837363,1756752662485,-480.0,0.00015068,2]
[382837365,1756752662496,-480.0,0.00015068,2]
[382837367,1756752662507,-615.05,0.00015068,2]
[382837369,1756752662516,-753.09,0.00015068,2]
[382837371,1756752662526,-480.0,0.00015068,2]
[382837373,1756752662535,-2266.56,0.00015068,2]
[382837375,1756752662546,-480.0,0.00015068,2]
[382837377,1756752662556,-920.79,0.00015068,2]
[382837378,1756752662568,-694.03,0.00015068,2]
[382837380,1756752662579,-564.46,0.00015068,2]
[382837382,1756752662588,-3115.4,0.00015068,2]
[382837385,1756752662598,-480.0,0.00015068,2]
[382837386,1756752662608,-480.0,0.00015068,2]
[382837388,1756752662617,-480.0,0.00015068,2]
[382837390,1756752662627,-1162.68,0.00015068,2]
[382837392,1756752662637,-571.48,0.00015068,2]
[382837394,1756752662647,-480.0,0.00015068,2]
[382837396,1756752662659,-480.0,0.00015068,2]
[382837398,1756752662669,-1242.4,0.00015068,2]
[382837400,1756752662679,-480.0,0.00015068,2]
[382837402,1756752662688,-480.0,0.00015068,2]
[382837404,1756752662697,-480.0,0.00015068,2]
[382837406,1756752662707,-616.55,0.00015068,2]
[382837408,1756752662716,-599.05,0.00015068,2]
[382837410,1756752662726,-480.0,0.00015068,2]
[382837412,1756752662736,-480.0,0.00015068,2]
[382837414,1756752662746,-738.71,0.00015068,2]
[382837416,1756752662755,-1484.02,0.00015068,2]
[382837418,1756752662765,-594.72,0.00015068,2]
[382837420,1756752662776,-480.0,0.00015068,2]
[382837422,1756752662786,-497.25,0.00015068,2]
[382837424,1756752662795,-5123.42,0.00015068,2]
[382837426,1756752662805,-1779.12,0.00015068,2]
[382837428,1756752662815,-480.0,0.00015068,2]
[382837430,1756752662825,-480.0,0.00015068,2]
[382837432,1756752662835,-480.0,0.00015068,2]
[382837434,1756752662845,-682.83,0.00015068,2]
[382837436,1756752662855,-626.08,0.00015068,2]
[382837438,1756752662866,-480.0,0.00015068,2]
[382837441,1756752662876,-626.41,0.00015068,2]
[382837443,1756752662886,-1236.9,0.00015068,2]
[382837445,1756752662895,-685.05,0.00015068,2]
[382837447,1756752662906,-480.0,0.00015068,2]
[382837449,1756752662916,-480.0,0.00015068,2]
[382837451,1756752662926,-556.94,0.00015068,2]
[382837453,1756752662935,-480.0,0.00015068,2]
[382837455,1756752662945,-480.0,0.00015068,2]
[382837457,1756752662954,-631.68,0.00015068,2]
[382837459,1756752662964,-480.0,0.00015068,2]
[382837461,1756752662973,-480.0,0.00015068,2]
[382837462,1756752662983,-750.73,0.00015068,2]
[382837465,1756752662993,-480.0,0.00015068,2]
[382837467,1756752663003,-819.12,0.00015068,2]
[382837469,1756752663013,-3211.07,0.00015068,2]
[382837470,1756752663023,-480.0,0.00015068,2]
[382837473,1756752663033,-491.99,0.00015068,2]
[382837475,1756752663043,-1086.27,0.00015068,2]
[382837477,1756752663053,-480.0,0.00015068,2]
[382837478,1756752663063,-480.0,0.00015068,2]
[382837480,1756752663073,-2100.38,0.00015068,2]
[382837482,1756752663082,-1577.9,0.00015068,2]
[382837484,1756752663093,-480.0,0.00015068,2]
[382837486,1756752663102,-1542.28,0.00015068,2]
[382837488,1756752663112,-576.44,0.00015068,2]
[382837490,1756752663122,-480.0,0.00015068,2]
[382837492,1756752663132,-480.0,0.00015068,2]
[382837494,1756752663142,-480.0,0.00015068,2]
[382837496,1756752663152,-633.39,0.00015068,2]
[382837498,1756752663162,-525.33,0.00015068,2]
[382837500,1756752663173,-490.33,0.00015068,2]
[382837502,1756752663182,-480.0,0.00015068,2]
[382837504,1756752663192,-773.53,0.00015068,2]
[382837507,1756752663203,-1971.19,0.00015068,2]
[382837509,1756752663213,-480.0,0.00015068,2]
[382837511,1756752663222,-613.24,0.00015068,2]
[382837513,1756752663232,-562.49,0.00015068,2]
[382837514,1756752663243,-480.0,0.00015068,2]
[382837516,1756752663254,-942.08,0.00015068,2]
[382837519,1756752663264,-609.01,0.00015068,2]
[382837521,1756752663275,-2000.0,0.00015068,2]
[382837523,1756752663285,-300.0,0.00015095,5]
[382837525,1756752663295,-300.0,0.00015123,8]
[382837527,1756752663305,-13128.2722206,0.00015147,2]
[382837529,1756752663314,-3372.0,0.00015231,2]
[382837531,1756752663324,-151.0,0.00015234,2]
[382837533,1756752663334,-720.0,0.00015256,2]
[382837534,1756752663343,-1500.0,0.00015258,2]
[382837536,1756752663353,-1500.0,0.0001526,2]
[382837538,1756752663362,-1459.7185,0.000153,2]
[382837541,1756752663372,-1500.0,0.00015301,2]
[382837543,1756752663382,-2000.0,0.00015316,2]
[382837545,1756752663391,-2000.0,0.00015316,2]
[382837547,1756752663401,-2000.0,0.00015316,2]
[382837549,1756752663411,-1000.0,0.00015321,2]
[382837551,1756752663422,-1000.0,0.00015321,2]
[382837553,1756752663432,-1000.0,0.00015321,2]
[382837555,1756752663441,-1000.0,0.00015321,2]
[382837557,1756752663451,-1006.11170552,0.00015321,2]
[382837558,1756752663461,-1000.0,0.00015321,2]
[382837561,1756752663471,-1000.0,0.00015321,2]
[382837562,1756752663481,-1000.0,0.00015321,2]
[382837564,1756752663491,-1000.0,0.00015321,2]
[382837566,1756752663500,-1000.0,0.00015321,2]
[382837568,1756752663510,-164.34449582,0.00015321,2]
[382837570,1756752663519,-1500.0,0.00015338,2]
[382837572,1756752663529,-151.0,0.00015342,2]
[382837574,1756752663538,-151.0,0.00015342,2]
[382837576,1756752663547,-151.0,0.00015342,2]
[382837578,1756752663556,-151.0,0.00015342,2]
[382837580,1756752663564,-151.0,0.00015342,2]
[382837582,1756752663574,-690.0,0.00015342,2]
[382837584,1756752663583,-151.0,0.00015342,2]
[382837586,1756752663592,-151.0,0.00015342,2]
[382837588,1756752663602,-480.0,0.00015342,2]
[382837590,1756752663611,-509.36,0.00015342,2]
[382837592,1756752663621,-1417.58,0.00015342,2]
[382837594,1756752663630,-480.0,0.00015342,2]
[382837596,1756752663639,-480.0,0.00015342,2]
[382837598,1756752663649,-480.0,0.00015342,2]
[382837600,1756752663661,-436.57473647,0.00015342,2]
[382837602,1756752663670,-151.94856176,0.00015342,2]
[382837604,1756752663679,-556.68,0.00015342,2]
[382837606,1756752663688,-480.0,0.00015342,2]
[382837608,1756752663698,-480.0,0.00015342,2]
[382837610,1756752663708,-624.23,0.00015342,2]
[382837612,1756752663716,-480.0,0.00015342,2]
[382837614,1756752663726,-505.72,0.00015342,2]
[382837616,1756752663737,-480.34,0.00015342,2]
[382837618,1756752663747,-480.0,0.00015342,2]
[382837620,1756752663757,-480.0,0.00015342,2]
[382837622,1756752663767,-483.6,0.00015342,2]
[382837624,1756752663776,-562.48,0.00015342,2]
[382837626,1756752663786,-613.13,0.00015342,2]
[382837628,1756752663795,-480.0,0.00015342,2]
[382837630,1756752663806,-492.62,0.00015342,2]
[382837632,1756752663816,-480.0,0.00015342,2]
[382837634,1756752663826,-480.0,0.00015342,2]
[382837636,1756752663836,-592.4,0.00015342,2]
[382837638,1756752663846,-480.0,0.00015342,2]
[382837640,1756752663855,-503.19,0.00015342,2]
[382837642,1756752663865,-310.01178538,0.00015342,2]
[382837644,1756752663875,-548.99,0.00015342,2]
[382837646,1756752663885,-480.0,0.00015342,2]
[382837648,1756752663894,-480.0,0.00015342,2]
[382837650,1756752663903,-480.0,0.00015342,2]
[382837652,1756752663913,-480.0,0.00015342,2]
[382837654,1756752663922,-700.63,0.00015342,2]
[382837656,1756752663932,-480.0,0.00015342,2]
[382837658,1756752663942,-640.83,0.00015342,2]
[382837660,1756752663952,-579.17,0.00015342,2]
[382837661,1756752663962,-508.51,0.00015342,2]
[382837662,1756752663972,-480.0,0.00015342,2]
[382837663,1756752663982,-480.0,0.00015342,2]
[382837664,1756752663992,-597.73,0.00015342,2]
[382837665,1756752664002,-480.0,0.00015342,2]
[382837666,1756752664012,-668.88,0.00015342,2]
[382837667,1756752664022,-688.87,0.00015342,2]
[382837668,1756752664032,-480.0,0.00015342,2]
[382837669,1756752664042,-480.0,0.00015342,2]
[382837670,1756752664052,-548.87,0.00015342,2]
[382837671,1756752664062,-480.0,0.00015342,2]
[382837672,1756752664072,-480.0,0.00015342,2]
[382837674,1756752664082,-480.0,0.00015342,2]
[382837676,1756752664092,-667.0,0.00015342,2]
[382837678,1756752664102,-480.0,0.00015342,2]
[382837681,1756752664112,-480.0,0.00015342,2]
[382837683,1756752664122,-480.0,0.00015342,2]
[382837685,1756752664133,-480.0,0.00015342,2]
[382837687,1756752664143,-615.05,0.00015342,2]
[382837689,1756752664153,-753.09,0.00015342,2]
[382837691,1756752664162,-480.0,0.00015342,2]
[382837693,1756752664172,-2266.56,0.00015342,2]
[382837695,1756752664182,-480.0,0.00015342,2]
[382837697,1756752664191,-920.79,0.00015342,2]
[382837699,1756752664201,-694.03,0.00015342,2]
[382837701,1756752664212,-564.46,0.00015342,2]
[382837703,1756752664222,-3115.4,0.00015342,2]
[382837709,1756752664273,-480.0,0.00015342,2]
[382837711,1756752664284,-367.92958938,0.00015342,2]
[382837713,1756752664293,-1162.68,0.00015342,2]
[382837715,1756752664303,-521.66763265,0.00015342,2]
[382837717,1756752664313,-571.48,0.00015342,2]
[382837719,1756752664323,-480.0,0.00015342,2]
[382837721,1756752664332,-376.74,0.00015342,2]
[382837723,1756752664341,-1242.4,0.00015342,2]
[382837725,1756752664351,-480.0,0.00015342,2]
[382837727,1756752664361,-480.0,0.00015342,2]
[382837729,1756752664370,-480.0,0.00015342,2]
[382837731,1756752664380,-616.55,0.00015342,2]
[382837733,1756752664389,-599.05,0.00015342,2]
[382837735,1756752664399,-480.0,0.00015342,2]
[382837737,1756752664408,-480.0,0.00015342,2]
[382837739,1756752664418,-738.71,0.00015342,2]
[382837741,1756752664427,-1484.02,0.00015342,2]
[382837743,1756752664436,-594.72,0.00015342,2]
[382837745,1756752664445,-480.0,0.00015342,2]
[382837747,1756752664455,-497.25,0.00015342,2]
[382837749,1756752664465,-5123.42,0.00015342,2]
[382837751,1756752664474,-1779.12,0.00015342,2]
[382837753,1756752664485,-480.0,0.00015342,2]
[382837755,1756752664495,-480.0,0.00015342,2]
[382837757,1756752664505,-480.0,0.00015342,2]
[382837759,1756752664515,-682.83,0.00015342,2]
[382837761,1756752664525,-626.08,0.00015342,2]
[382837763,1756752664534,-480.0,0.00015342,2]
[382837765,1756752664543,-626.41,0.00015342,2]
[382837767,1756752664555,-1236.9,0.00015342,2]
[382837769,1756752664564,-685.05,0.00015342,2]
[382837771,1756752664574,-480.0,0.00015342,2]
[382837773,1756752664583,-199.80637633,0.00015342,2]
[382837775,1756752664592,-556.94,0.00015342,2]
[382837777,1756752664602,-329.92,0.00015342,2]
[382837779,1756752664611,-480.0,0.00015342,2]
[382837781,1756752664621,-631.68,0.00015342,2]
[382837783,1756752664631,-480.0,0.00015342,2]
[382837785,1756752664640,-480.0,0.00015342,2]
[382837788,1756752664651,-750.73,0.00015342,2]
[382837790,1756752664661,-480.0,0.00015342,2]
[382837791,1756752664670,-819.12,0.00015342,2]
[382837793,1756752664679,-3211.07,0.00015342,2]
[382837795,1756752664689,-480.0,0.00015342,2]
[382837797,1756752664698,-491.99,0.00015342,2]
[382837799,1756752664707,-1086.27,0.00015342,2]
[382837801,1756752664717,-480.0,0.00015342,2]
[382837803,1756752664726,-480.0,0.00015342,2]
[382837805,1756752664735,-2100.38,0.00015342,2]
[382837807,1756752664745,-1577.9,0.00015342,2]
[382837809,1756752664753,-480.0,0.00015342,2]
[382837811,1756752664762,-1542.28,0.00015342,2]
[382837813,1756752664771,-576.44,0.00015342,2]
[382837815,1756752664780,-480.0,0.00015342,2]
[382837817,1756752664789,-480.0,0.00015342,2]
[382837819,1756752664798,-480.0,0.00015342,2]
[382837821,1756752664807,-633.39,0.00015342,2]
[382837823,1756752664816,-525.33,0.00015342,2]
[382837825,1756752664825,-480.0,0.00015342,2]
[382837827,1756752664833,-490.33,0.00015342,2]
[382837829,1756752664842,-773.53,0.00015342,2]
[382837831,1756752664851,-1971.19,0.00015342,2]
[382837833,1756752664860,-480.0,0.00015342,2]
[382837835,1756752664868,-613.24,0.00015342,2]
[382837837,1756752664878,-562.49,0.00015342,2]
[382837839,1756752664887,-480.0,0.00015342,2]
[382837842,1756752664897,-942.08,0.00015342,2]
[382837844,1756752664907,-609.01,0.00015342,2]
[382837846,1756752664914,-1500.0,0.00015368,2]
[382837848,1756752664925,-1500.0,0.00015368,2]
[382837850,1756752664935,-1517.66286273,0.00015368,2]
[382837852,1756752664945,-1500.0,0.00015368,2]
[382837854,1756752664953,-160.0,0.000154,2]
[382837856,1756752664962,-3000.0,0.0001541,2]
[382837858,1756752664969,-83137.34205292,0.00015516,2]
[382837860,1756752664978,-2929.313483,0.00015527,2]
[382837863,1756752664987,-7000.0,0.00015581,2]
[382837864,1756752664994,-245.0,0.00015616,2]
[382837866,1756752665002,-245.0,0.00015616,2]
[382837869,1756752665011,-245.0,0.00015616,2]
[382837871,1756752665019,-245.0,0.00015616,2]
[382837873,1756752665028,-245.0,0.00015616,2]
[382837875,1756752665037,-690.0,0.00015616,2]
[382837877,1756752665048,-245.0,0.00015616,2]
[382837879,1756752665057,-245.0,0.00015616,2]
[382837881,1756752665067,-480.0,0.00015616,2]
[382837883,1756752665076,-509.36,0.00015616,2]
[382837885,1756752665085,-1417.58,0.00015616,2]
[382837886,1756752665094,-436.79667747,0.00015616,2]
[382837908,1756752665283,-89.56132253,0.00015616,2]
[382837910,1756752665292,-480.0,0.00015616,2]
[382837912,1756752665302,-480.0,0.00015616,2]
[382837914,1756752665312,-556.68,0.00015616,2]
[382837916,1756752665322,-480.0,0.00015616,2]
[382837918,1756752665331,-480.0,0.00015616,2]
[382837920,1756752665343,-624.23,0.00015616,2]
[382837921,1756752665353,-480.0,0.00015616,2]
[382837924,1756752665364,-505.72,0.00015616,2]
[382837926,1756752665374,-480.34,0.00015616,2]
[382837928,1756752665386,-480.0,0.00015616,2]
[382837930,1756752665396,-480.0,0.00015616,2]
[382837932,1756752665408,-483.6,0.00015616,2]
[382837934,1756752665418,-562.48,0.00015616,2]
[382837936,1756752665427,-613.13,0.00015616,2]
[382837938,1756752665437,-480.0,0.00015616,2]
[382837940,1756752665447,-492.62,0.00015616,2]
[382837942,1756752665457,-480.0,0.00015616,2]
[382837944,1756752665466,-480.0,0.00015616,2]
[382837946,1756752665476,-592.4,0.00015616,2]
[382837948,1756752665485,-480.0,0.00015616,2]
[382837950,1756752665496,-503.19,0.00015616,2]
[382837952,1756752665505,-548.99,0.00015616,2]
[382837954,1756752665515,-480.0,0.00015616,2]
[382837956,1756752665525,-480.0,0.00015616,2]
[382837958,1756752665535,-480.0,0.00015616,2]
[382837960,1756752665545,-480.0,0.00015616,2]
[382837962,1756752665555,-700.63,0.00015616,2]
[382837964,1756752665564,-480.0,0.00015616,2]
[382837966,1756752665574,-640.83,0.00015616,2]
[382837968,1756752665584,-579.17,0.00015616,2]
[382837970,1756752665593,-508.51,0.00015616,2]
[382837972,1756752665604,-480.0,0.00015616,2]
[382837974,1756752665613,-480.0,0.00015616,2]
[382837976,1756752665623,-597.73,0.00015616,2]
[382837978,1756752665633,-480.0,0.00015616,2]
[382837980,1756752665642,-668.88,0.00015616,2]
[382837982,1756752665655,-688.87,0.00015616,2]
[382837984,1756752665665,-480.0,0.00015616,2]
[382837986,1756752665675,-480.0,0.00015616,2]